[Event "Early-Titled-Tuesday-Blitz-August-29-2023"]
[Site "Chess.com"]
[Date "2023.08.29"]
[Round "2"]
[White "Chuchofrio1"]
[Black "aghasiyevkamal"]
[Result "0-1"]
[WhiteElo "2244"]
[BlackElo "2485"]
[TimeControl "180+1"]
[EndTime "8:18:57 PDT"]
[Termination "aghasiyevkamal won by resignation"]

1. e4 {[%clk 0:03:00]} 1... e5 {[%clk 0:02:59.3]} 2. Nf3 {[%clk 0:02:59.8]} 2...
Nc6 {[%clk 0:02:59.7]} 3. Bb5 {[%clk 0:03:00.1]} 3... a6 {[%clk 0:02:59.6]} 4.
Ba4 {[%clk 0:03:00.3]} 4... Nf6 {[%clk 0:02:59.8]} 5. d4 {[%clk 0:02:57.6]} 5...
exd4 {[%clk 0:02:49.5]} 6. O-O {[%clk 0:02:57.7]} 6... Be7 {[%clk 0:02:44.6]} 7.
e5 {[%clk 0:02:57.5]} 7... Ne4 {[%clk 0:02:44]} 8. Nxd4 {[%clk 0:02:57.5]} 8...
Nc5 {[%clk 0:02:41.1]} 9. Nf5 {[%clk 0:02:57.6]} 9... Bf8 {[%clk 0:02:27.4]} 10.
Qg4 {[%clk 0:02:08.8]} 10... Ne6 {[%clk 0:02:08.5]} 11. Bxc6 {[%clk 0:01:58.5]}
11... dxc6 {[%clk 0:02:05.8]} 12. Rd1 {[%clk 0:01:58.2]} 12... Bd7 {[%clk
0:02:02.6]} 13. Nc3 {[%clk 0:01:57.9]} 13... h5 {[%clk 0:01:58.6]} 14. Qg3
{[%clk 0:01:53]} 14... g6 {[%clk 0:01:55.3]} 15. Nd4 {[%clk 0:01:49]} 15... h4
{[%clk 0:01:37.4]} 16. Qf3 {[%clk 0:01:30.3]} 16... Nxd4 {[%clk 0:01:34]} 17.
Rxd4 {[%clk 0:01:29.5]} 17... Qe7 {[%clk 0:01:34.4]} 18. Bf4 {[%clk 0:01:27.8]}
18... O-O-O {[%clk 0:01:32.9]} 19. Rad1 {[%clk 0:01:26.3]} 19... Bh6 {[%clk
0:01:32.8]} 20. Ne4 {[%clk 0:01:14.1]} 20... Bxf4 {[%clk 0:01:28.8]} 21. Qxf4
{[%clk 0:01:13.7]} 21... h3 {[%clk 0:01:22.5]} 22. Nf6 {[%clk 0:01:13]} 22...
Be6 {[%clk 0:01:19]} 23. Qe3 {[%clk 0:00:59.1]} 23... c5 {[%clk 0:01:16]} 24.
Rxd8+ {[%clk 0:00:54.4]} 24... Rxd8 {[%clk 0:01:14]} 25. Rxd8+ {[%clk
0:00:47.4]} 25... Qxd8 {[%clk 0:01:14.1]} 26. gxh3 {[%clk 0:00:47.7]} 26... Qd1+
{[%clk 0:01:12]} 27. Kg2 {[%clk 0:00:47.7]} 27... b6 {[%clk 0:01:12.5]} 28. Qe4
{[%clk 0:00:40.4]} 28... Kb8 {[%clk 0:01:06.9]} 29. a4 {[%clk 0:00:36.5]} 29...
Qd2 {[%clk 0:01:04.2]} 30. h4 {[%clk 0:00:30.9]} 30... a5 {[%clk 0:01:01.6]} 31.
Qd3 {[%clk 0:00:19.6]} 31... Qf4 {[%clk 0:00:58.9]} 32. Qe4 {[%clk 0:00:19]}
32... Qc1 {[%clk 0:00:55.5]} 33. Qd3 {[%clk 0:00:16.6]} 33... Qxb2 {[%clk
0:00:51.7]} 34. Qd8+ {[%clk 0:00:16.5]} 34... Kb7 {[%clk 0:00:52.2]} 35. f4
{[%clk 0:00:15.3]} 35... Qxc2+ {[%clk 0:00:51.1]} 36. Kg3 {[%clk 0:00:15.7]}
36... Qc3+ {[%clk 0:00:45]} 37. Kg2 {[%clk 0:00:15.9]} 37... Qe3 {[%clk
0:00:34.9]} 38. f5 {[%clk 0:00:05.2]} 38... Bxf5 {[%clk 0:00:29.8]} 39. Qxc7+
{[%clk 0:00:05.1]} 39... Ka6 {[%clk 0:00:17.6]} 40. Qxb6+ {[%clk 0:00:03.1]}
40... Kxb6 {[%clk 0:00:16.9]} 41. Nd5+ {[%clk 0:00:04]} 41... Kc6 {[%clk
0:00:17.4]} 42. Nxe3 {[%clk 0:00:04.9]} 42... Be6 {[%clk 0:00:16.2]} 43. Kf3
{[%clk 0:00:04.8]} 43... c4 {[%clk 0:00:16.4]} 44. Ke2 {[%clk 0:00:05.1]} 44...
Kc5 {[%clk 0:00:16.7]} 45. Kd2 {[%clk 0:00:04.9]} 45... Kb4 {[%clk 0:00:16.1]}
46. h5 {[%clk 0:00:05.2]} 46... gxh5 {[%clk 0:00:15.8]} 47. Nc2+ {[%clk
0:00:05.4]} 47... Kxa4 {[%clk 0:00:15.1]} 48. Nd4 {[%clk 0:00:06.3]} 48... Kb4
{[%clk 0:00:15.4]} 49. Kc2 {[%clk 0:00:06.6]} 49... a4 {[%clk 0:00:13.7]} 50.
Nc6+ {[%clk 0:00:06.7]} 50... Kc5 {[%clk 0:00:13.7]} 51. Na5 {[%clk 0:00:05]}
51... Kd4 {[%clk 0:00:13.6]} 52. Nc6+ {[%clk 0:00:04.6]} 52... Kd5 {[%clk
0:00:12]} 0-1

[Event "Early-Titled-Tuesday-Blitz-August-29-2023"]
[Site "Chess.com"]
[Date "2023.08.29"]
[Round "2"]
[White "ViIIagra"]
[Black "Agibileg"]
[Result "1-0"]
[WhiteElo "2934"]
[BlackElo "2606"]
[TimeControl "180+1"]
[EndTime "8:19:00 PDT"]
[Termination "ViIIagra won by resignation"]

1. d4 {[%clk 0:03:00.9]} 1... Nf6 {[%clk 0:02:57]} 2. Nf3 {[%clk 0:03:00.2]}
2... g6 {[%clk 0:02:57.1]} 3. Nbd2 {[%clk 0:02:57.5]} 3... d5 {[%clk 0:02:56.3]}
4. Nb3 {[%clk 0:02:57.7]} 4... Bg7 {[%clk 0:02:56.3]} 5. Bf4 {[%clk 0:02:57.7]}
5... O-O {[%clk 0:02:55.7]} 6. h3 {[%clk 0:02:57.7]} 6... a5 {[%clk 0:02:47.5]}
7. a4 {[%clk 0:02:57.6]} 7... b6 {[%clk 0:02:29.7]} 8. e3 {[%clk 0:02:56.5]}
8... Bb7 {[%clk 0:02:24.8]} 9. Be2 {[%clk 0:02:52.9]} 9... Nbd7 {[%clk
0:02:24.1]} 10. O-O {[%clk 0:02:53.1]} 10... c5 {[%clk 0:02:24.1]} 11. Bb5
{[%clk 0:02:46.5]} 11... c4 {[%clk 0:02:21]} 12. Nbd2 {[%clk 0:02:46.4]} 12...
Rc8 {[%clk 0:02:10.9]} 13. Nb1 {[%clk 0:02:37.1]} 13... Ne4 {[%clk 0:02:07.6]}
14. Nc3 {[%clk 0:02:36.7]} 14... Nxc3 {[%clk 0:02:03.4]} 15. bxc3 {[%clk
0:02:37.6]} 15... Nf6 {[%clk 0:02:01.2]} 16. Nd2 {[%clk 0:02:34]} 16... Ne4
{[%clk 0:01:43.8]} 17. Nxe4 {[%clk 0:02:32.2]} 17... dxe4 {[%clk 0:01:44.2]} 18.
Rb1 {[%clk 0:02:28.2]} 18... Qd5 {[%clk 0:01:40.4]} 19. f3 {[%clk 0:02:24.8]}
19... Rfd8 {[%clk 0:01:36.3]} 20. fxe4 {[%clk 0:02:20.4]} 20... Qxe4 {[%clk
0:01:37.2]} 21. Qf3 {[%clk 0:02:20.5]} 21... Qxf3 {[%clk 0:01:15.7]} 22. gxf3
{[%clk 0:02:21.4]} 22... e5 {[%clk 0:01:16.5]} 23. Bxe5 {[%clk 0:02:07.8]} 23...
Bxe5 {[%clk 0:01:16.3]} 24. dxe5 {[%clk 0:02:08.7]} 24... Rd2 {[%clk 0:01:16.6]}
25. Rf2 {[%clk 0:02:09.4]} 25... Rd5 {[%clk 0:01:07.5]} 26. f4 {[%clk
0:02:07.5]} 26... Kf8 {[%clk 0:01:00.3]} 27. Kh2 {[%clk 0:02:04.6]} 27... Ke7
{[%clk 0:00:59.8]} 28. Kg3 {[%clk 0:02:05.1]} 28... Rdd8 {[%clk 0:00:56.1]} 29.
Re1 {[%clk 0:01:56.5]} 29... Be4 {[%clk 0:00:54.5]} 30. Ree2 {[%clk 0:01:54.9]}
30... Rd1 {[%clk 0:00:46.4]} 31. Rd2 {[%clk 0:01:33.1]} 31... Rg1+ {[%clk
0:00:46.4]} 32. Kh4 {[%clk 0:01:33.5]} 32... h6 {[%clk 0:00:42.7]} 33. Rd7+
{[%clk 0:01:16.4]} 33... Ke6 {[%clk 0:00:26.9]} 34. Rfd2 {[%clk 0:00:30.1]}
34... g5+ {[%clk 0:00:26.2]} 35. Kh5 {[%clk 0:00:30.7]} 35... Bg6+ {[%clk
0:00:20]} 36. Kxh6 {[%clk 0:00:30.7]} 36... gxf4 {[%clk 0:00:19.6]} 37. exf4
{[%clk 0:00:27.3]} 37... Kf5 {[%clk 0:00:16.7]} 38. R2d6 {[%clk 0:00:07.9]}
38... Rh8+ {[%clk 0:00:16.2]} 39. Kg7 {[%clk 0:00:08]} 39... Rxh3 {[%clk
0:00:16]} 40. Rf6+ {[%clk 0:00:08.2]} 40... Ke4 {[%clk 0:00:16.3]} 41. Kf8
{[%clk 0:00:09.1]} 41... Rxc3 {[%clk 0:00:12.6]} 42. Bc6+ {[%clk 0:00:09.5]}
42... Ke3 {[%clk 0:00:10.7]} 43. f5 {[%clk 0:00:10.3]} 43... Bh5 {[%clk
0:00:10.8]} 44. e6 {[%clk 0:00:10.1]} 44... fxe6 {[%clk 0:00:08.9]} 45. fxe6
{[%clk 0:00:11]} 45... Rxc2 {[%clk 0:00:08.9]} 46. Rh7 {[%clk 0:00:11.4]} 46...
Bg6 {[%clk 0:00:07.4]} 47. Rg7 {[%clk 0:00:11.8]} 47... Rf2 {[%clk 0:00:03.7]}
48. Ke7 {[%clk 0:00:07.6]} 48... Rxf6 {[%clk 0:00:02.7]} 49. Kxf6 {[%clk
0:00:08.5]} 49... Kf2 {[%clk 0:00:03]} 50. Rxg6 {[%clk 0:00:08.4]} 50... Re1
{[%clk 0:00:03.9]} 51. e7 {[%clk 0:00:07.4]} 51... c3 {[%clk 0:00:04]} 52. Rg2+
{[%clk 0:00:08.1]} 52... Kf1 {[%clk 0:00:04.4]} 53. Rc2 {[%clk 0:00:08.6]} 53...
Re3 {[%clk 0:00:04]} 54. Rxc3 {[%clk 0:00:08.3]} 54... Rxc3 {[%clk 0:00:04.4]}
55. e8=Q {[%clk 0:00:08.9]} 1-0

[Event "Early-Titled-Tuesday-Blitz-August-29-2023"]
[Site "Chess.com"]
[Date "2023.08.29"]
[Round "2"]
[White "Vsevolod_Ovchinnikov"]
[Black "smilingice"]
[Result "1-0"]
[WhiteElo "2605"]
[BlackElo "2375"]
[TimeControl "180+1"]
[EndTime "8:19:01 PDT"]
[Termination "Vsevolod_Ovchinnikov won on time"]

1. d4 {[%clk 0:03:00.9]} 1... Nf6 {[%clk 0:02:53.8]} 2. c4 {[%clk 0:03:00.4]}
2... g6 {[%clk 0:02:53.9]} 3. Nc3 {[%clk 0:02:59.9]} 3... Bg7 {[%clk 0:02:54]}
4. e4 {[%clk 0:02:58.3]} 4... d6 {[%clk 0:02:53.6]} 5. Nf3 {[%clk 0:02:58.2]}
5... O-O {[%clk 0:02:53]} 6. h3 {[%clk 0:02:58.2]} 6... e5 {[%clk 0:02:51.2]} 7.
d5 {[%clk 0:02:58.5]} 7... a5 {[%clk 0:02:51.4]} 8. g4 {[%clk 0:02:57.9]} 8...
Na6 {[%clk 0:02:49.4]} 9. Be3 {[%clk 0:02:56.5]} 9... Nc5 {[%clk 0:02:41.9]} 10.
Nd2 {[%clk 0:02:55.9]} 10... Ne8 {[%clk 0:02:30.5]} 11. a3 {[%clk 0:02:47.7]}
11... f5 {[%clk 0:02:01.9]} 12. Rg1 {[%clk 0:02:20.8]} 12... f4 {[%clk
0:01:42.3]} 13. Bxc5 {[%clk 0:02:20.4]} 13... dxc5 {[%clk 0:01:42.2]} 14. g5
{[%clk 0:02:21.2]} 14... h6 {[%clk 0:01:20.7]} 15. gxh6 {[%clk 0:02:10.9]} 15...
Bxh6 {[%clk 0:01:15.1]} 16. Rxg6+ {[%clk 0:02:10.1]} 16... Bg7 {[%clk
0:01:08.8]} 17. Qh5 {[%clk 0:02:02.6]} 17... Rf6 {[%clk 0:01:04.7]} 18. O-O-O
{[%clk 0:01:45.5]} 18... Rxg6 {[%clk 0:01:02.2]} 19. Qxg6 {[%clk 0:01:46.4]}
19... Ra6 {[%clk 0:01:01.9]} 20. Qg1 {[%clk 0:01:15.4]} 20... Rh6 {[%clk
0:00:56.8]} 21. Nf3 {[%clk 0:01:12.1]} 21... Bxh3 {[%clk 0:00:47.8]} 22. Nxe5
{[%clk 0:00:37.5]} 22... Qh4 {[%clk 0:00:37.3]} 23. Nf3 {[%clk 0:00:16.4]} 23...
Qh5 {[%clk 0:00:35.4]} 24. Bxh3 {[%clk 0:00:15.9]} 24... Qxh3 {[%clk 0:00:34.6]}
25. Ng5 {[%clk 0:00:14.4]} 25... Qh5 {[%clk 0:00:32.9]} 26. Ne6 {[%clk
0:00:14.2]} 26... Rg6 {[%clk 0:00:30.9]} 27. Qh1 {[%clk 0:00:09]} 27... Qxh1
{[%clk 0:00:30.4]} 28. Rxh1 {[%clk 0:00:09.9]} 28... Bxc3 {[%clk 0:00:30]} 29.
bxc3 {[%clk 0:00:10.8]} 29... Nd6 {[%clk 0:00:27.1]} 30. f3 {[%clk 0:00:08.1]}
30... Nxc4 {[%clk 0:00:26.2]} 31. Nxf4 {[%clk 0:00:07.1]} 31... Rf6 {[%clk
0:00:24.5]} 32. Rh4 {[%clk 0:00:06]} 32... Ne5 {[%clk 0:00:23.6]} 33. Ne6 {[%clk
0:00:05.7]} 33... Rxf3 {[%clk 0:00:21]} 34. Kc2 {[%clk 0:00:05]} 34... c4 {[%clk
0:00:20.4]} 35. Rf4 {[%clk 0:00:03.5]} 35... Rxf4 {[%clk 0:00:18.9]} 36. Nxf4
{[%clk 0:00:04.4]} 36... Kf7 {[%clk 0:00:19.2]} 37. Ne6 {[%clk 0:00:04.7]} 37...
c6 {[%clk 0:00:16.9]} 38. Nd8+ {[%clk 0:00:02.5]} 38... Ke8 {[%clk 0:00:15.9]}
39. Nxb7 {[%clk 0:00:03.2]} 39... cxd5 {[%clk 0:00:14.2]} 40. exd5 {[%clk
0:00:04.1]} 40... Kd7 {[%clk 0:00:14.5]} 41. Nxa5 {[%clk 0:00:04.3]} 41... Kd6
{[%clk 0:00:14.5]} 42. Nc6 {[%clk 0:00:05]} 42... Nxc6 {[%clk 0:00:11.4]} 43.
dxc6 {[%clk 0:00:05.9]} 43... Kxc6 {[%clk 0:00:11.7]} 44. Kd2 {[%clk 0:00:04.2]}
44... Kb5 {[%clk 0:00:11.9]} 45. Ke3 {[%clk 0:00:05]} 45... Ka4 {[%clk
0:00:11.6]} 46. Kd4 {[%clk 0:00:05.5]} 46... Kb5 {[%clk 0:00:09.7]} 47. Kd5
{[%clk 0:00:04.9]} 47... Ka4 {[%clk 0:00:08.1]} 48. Kxc4 {[%clk 0:00:05.8]}
48... Kxa3 {[%clk 0:00:07.8]} 49. Kb5 {[%clk 0:00:06.4]} 49... Kb3 {[%clk
0:00:05.4]} 50. c4 {[%clk 0:00:07.3]} 50... Kc3 {[%clk 0:00:04.1]} 51. c5 {[%clk
0:00:08.2]} 51... Kd4 {[%clk 0:00:04]} 52. c6 {[%clk 0:00:09.1]} 1-0

[Event "Early-Titled-Tuesday-Blitz-August-29-2023"]
[Site "Chess.com"]
[Date "2023.08.29"]
[Round "2"]
[White "Russian_berezka"]
[Black "Alexander_Donchenko"]
[Result "1-0"]
[WhiteElo "2583"]
[BlackElo "2852"]
[TimeControl "180+1"]
[EndTime "8:19:03 PDT"]
[Termination "Russian_berezka won by resignation"]

1. d4 {[%clk 0:03:00.1]} 1... Nf6 {[%clk 0:02:59.7]} 2. c4 {[%clk 0:02:59.1]}
2... e6 {[%clk 0:03:00.2]} 3. Nc3 {[%clk 0:02:57.2]} 3... Bb4 {[%clk 0:03:00.3]}
4. e3 {[%clk 0:02:57.8]} 4... O-O {[%clk 0:03:00]} 5. Bd2 {[%clk 0:02:58.5]}
5... b6 {[%clk 0:02:58]} 6. Nf3 {[%clk 0:02:54.8]} 6... d5 {[%clk 0:02:57.9]} 7.
cxd5 {[%clk 0:02:54.3]} 7... exd5 {[%clk 0:02:58.8]} 8. Bd3 {[%clk 0:02:54.5]}
8... Ba6 {[%clk 0:02:55]} 9. Bxa6 {[%clk 0:02:50.8]} 9... Nxa6 {[%clk
0:02:55.9]} 10. O-O {[%clk 0:02:48.3]} 10... Re8 {[%clk 0:02:48.6]} 11. Qa4
{[%clk 0:02:46.1]} 11... Bxc3 {[%clk 0:02:43]} 12. Bxc3 {[%clk 0:02:41.1]} 12...
Nb8 {[%clk 0:02:43.6]} 13. b4 {[%clk 0:02:35]} 13... a6 {[%clk 0:02:39.6]} 14.
Qb3 {[%clk 0:02:28.8]} 14... Nbd7 {[%clk 0:02:35.1]} 15. a4 {[%clk 0:02:26.9]}
15... b5 {[%clk 0:02:33.5]} 16. axb5 {[%clk 0:02:16.2]} 16... axb5 {[%clk
0:02:33.6]} 17. Ra5 {[%clk 0:02:15.2]} 17... c6 {[%clk 0:02:30.3]} 18. Rfa1
{[%clk 0:02:14.2]} 18... Rc8 {[%clk 0:02:22]} 19. Be1 {[%clk 0:02:03.3]} 19...
Ne4 {[%clk 0:02:20.7]} 20. Ra6 {[%clk 0:01:59]} 20... Nd6 {[%clk 0:02:19.3]} 21.
Bc3 {[%clk 0:01:40.3]} 21... Nc4 {[%clk 0:02:18.6]} 22. Ra7 {[%clk 0:01:40.8]}
22... Rc7 {[%clk 0:02:17.5]} 23. R7a6 {[%clk 0:01:35.5]} 23... h6 {[%clk
0:02:13.3]} 24. h3 {[%clk 0:01:33]} 24... Qe7 {[%clk 0:02:09.6]} 25. Ra8 {[%clk
0:01:28.1]} 25... Ndb6 {[%clk 0:01:56.2]} 26. Rxe8+ {[%clk 0:01:25.2]} 26...
Qxe8 {[%clk 0:01:57.1]} 27. Ne5 {[%clk 0:01:21.6]} 27... Rc8 {[%clk 0:01:37.5]}
28. Ra6 {[%clk 0:01:06.1]} 28... Ra8 {[%clk 0:01:33.9]} 29. Qa2 {[%clk
0:01:04.7]} 29... Nxe5 {[%clk 0:01:23.7]} 30. dxe5 {[%clk 0:00:58.1]} 30... Na4
{[%clk 0:01:17.4]} 31. Rxa8 {[%clk 0:00:57.8]} 31... Qxa8 {[%clk 0:01:18.3]} 32.
Bd4 {[%clk 0:00:58.4]} 32... Nb6 {[%clk 0:01:15.5]} 33. Qa5 {[%clk 0:00:53]}
33... Qxa5 {[%clk 0:01:05.3]} 34. bxa5 {[%clk 0:00:53.9]} 34... Na8 {[%clk
0:01:03.7]} 35. f4 {[%clk 0:00:45.2]} 35... Nc7 {[%clk 0:00:57.4]} 36. f5 {[%clk
0:00:43.4]} 36... Kf8 {[%clk 0:00:55.9]} 37. Kf1 {[%clk 0:00:37.2]} 37... Ke7
{[%clk 0:00:52.1]} 38. Bc5+ {[%clk 0:00:35.2]} 38... Kd7 {[%clk 0:00:51.4]} 39.
Ke2 {[%clk 0:00:35.6]} 39... g6 {[%clk 0:00:48.4]} 40. g4 {[%clk 0:00:34.3]}
40... gxf5 {[%clk 0:00:45.7]} 41. gxf5 {[%clk 0:00:34.7]} 41... Na6 {[%clk
0:00:45.2]} 42. Bf8 {[%clk 0:00:32.3]} 42... h5 {[%clk 0:00:43.6]} 43. Kd3
{[%clk 0:00:32]} 43... c5 {[%clk 0:00:43.5]} 44. Kc3 {[%clk 0:00:28.3]} 44...
Ke8 {[%clk 0:00:34.7]} 45. Bd6 {[%clk 0:00:27.6]} 45... Kd7 {[%clk 0:00:35]} 46.
Bf8 {[%clk 0:00:27.4]} 46... Ke8 {[%clk 0:00:35.3]} 47. Bd6 {[%clk 0:00:26.3]}
47... Kd7 {[%clk 0:00:35.7]} 48. h4 {[%clk 0:00:26.5]} 48... Kc6 {[%clk
0:00:34.6]} 49. Bf8 {[%clk 0:00:21.5]} 49... b4+ {[%clk 0:00:33.2]} 50. Kd3
{[%clk 0:00:18.8]} 50... Nc7 {[%clk 0:00:30.1]} 51. e6 {[%clk 0:00:10.7]} 51...
fxe6 {[%clk 0:00:30.5]} 52. f6 {[%clk 0:00:11.3]} 52... e5 {[%clk 0:00:31.4]}
53. f7 {[%clk 0:00:10.9]} 53... e4+ {[%clk 0:00:31.6]} 54. Kc2 {[%clk
0:00:10.9]} 54... Ne6 {[%clk 0:00:32.3]} 55. Be7 {[%clk 0:00:10]} 55... Kb5
{[%clk 0:00:31.3]} 56. f8=Q {[%clk 0:00:09.7]} 56... Nxf8 {[%clk 0:00:31.9]} 57.
Bxf8 {[%clk 0:00:10.6]} 57... c4 {[%clk 0:00:32.3]} 58. Bxb4 {[%clk 0:00:10.3]}
58... d4 {[%clk 0:00:30.7]} 59. exd4 {[%clk 0:00:06.5]} 59... Kxb4 {[%clk
0:00:31.6]} 60. a6 {[%clk 0:00:06.5]} 60... e3 {[%clk 0:00:32.5]} 61. a7 {[%clk
0:00:05.1]} 61... e2 {[%clk 0:00:33.4]} 62. Kd2 {[%clk 0:00:04]} 62... c3+
{[%clk 0:00:34.3]} 63. Kxe2 {[%clk 0:00:04.3]} 63... Kc4 {[%clk 0:00:35.2]} 64.
Kd1 {[%clk 0:00:04.5]} 64... Kxd4 {[%clk 0:00:36.1]} 65. Kc2 {[%clk 0:00:04.5]}
65... Kc4 {[%clk 0:00:36.4]} 66. a8=Q {[%clk 0:00:05.4]} 66... Kd4 {[%clk
0:00:37.3]} 67. Qh8+ {[%clk 0:00:05.8]} 67... Ke3 {[%clk 0:00:38.2]} 68. Qxh5
{[%clk 0:00:06.6]} 68... Kf2 {[%clk 0:00:39.1]} 69. Qg5 {[%clk 0:00:07.3]} 69...
Kf1 {[%clk 0:00:39.2]} 70. h5 {[%clk 0:00:08.2]} 1-0

[Event "Early-Titled-Tuesday-Blitz-August-29-2023"]
[Site "Chess.com"]
[Date "2023.08.29"]
[Round "2"]
[White "Haykoooo0o"]
[Black "BillCoe"]
[Result "1-0"]
[WhiteElo "2443"]
[BlackElo "2116"]
[TimeControl "180+1"]
[EndTime "8:19:03 PDT"]
[Termination "Haykoooo0o won by checkmate"]

1. c4 {[%clk 0:03:00.9]} 1... g6 {[%clk 0:02:59.7]} 2. Nc3 {[%clk 0:03:00.7]}
2... Bg7 {[%clk 0:03:00.4]} 3. e4 {[%clk 0:03:01.2]} 3... d6 {[%clk 0:03:00.4]}
4. Nge2 {[%clk 0:02:47.6]} 4... e5 {[%clk 0:02:58.8]} 5. d3 {[%clk 0:02:47.6]}
5... Ne7 {[%clk 0:02:58]} 6. Be3 {[%clk 0:02:47.6]} 6... O-O {[%clk 0:02:57.7]}
7. Qd2 {[%clk 0:02:48]} 7... Re8 {[%clk 0:02:57.2]} 8. Bh6 {[%clk 0:02:47.6]}
8... Bh8 {[%clk 0:02:56.6]} 9. h4 {[%clk 0:02:48]} 9... c6 {[%clk 0:02:55.4]}
10. h5 {[%clk 0:02:47.9]} 10... d5 {[%clk 0:02:49.9]} 11. cxd5 {[%clk 0:02:44]}
11... cxd5 {[%clk 0:02:49.5]} 12. Ng3 {[%clk 0:02:44.6]} 12... d4 {[%clk
0:02:45]} 13. Nce2 {[%clk 0:02:43.9]} 13... Nbc6 {[%clk 0:02:41.1]} 14. hxg6
{[%clk 0:02:37.2]} 14... hxg6 {[%clk 0:02:37.7]} 15. Bg5 {[%clk 0:02:31.7]}
15... Qa5 {[%clk 0:02:36.6]} 16. Qxa5 {[%clk 0:01:51.3]} 16... Nxa5 {[%clk
0:02:35.9]} 17. f4 {[%clk 0:01:44.2]} 17... f6 {[%clk 0:02:29.8]} 18. Bh6 {[%clk
0:01:42]} 18... Nac6 {[%clk 0:02:23.6]} 19. Kd2 {[%clk 0:01:37.3]} 19... Bg4
{[%clk 0:02:20.4]} 20. Rh4 {[%clk 0:01:31]} 20... Be6 {[%clk 0:02:14.9]} 21.
fxe5 {[%clk 0:01:28.6]} 21... fxe5 {[%clk 0:02:14.9]} 22. Ng1 {[%clk 0:01:24.2]}
22... Bg7 {[%clk 0:02:13.4]} 23. Bg5 {[%clk 0:01:02.7]} 23... Rf8 {[%clk
0:02:12.8]} 24. Nf3 {[%clk 0:01:01.3]} 24... Rac8 {[%clk 0:01:54]} 25. Be2
{[%clk 0:01:01]} 25... Bf6 {[%clk 0:01:52.6]} 26. Bxf6 {[%clk 0:00:56.3]} 26...
Rxf6 {[%clk 0:01:53.3]} 27. Rah1 {[%clk 0:00:55.6]} 27... Kf8 {[%clk 0:01:40.4]}
28. Ng5 {[%clk 0:00:47.1]} 28... Bg8 {[%clk 0:01:37]} 29. Bg4 {[%clk 0:00:36.1]}
29... Rc7 {[%clk 0:01:31.4]} 30. Rh8 {[%clk 0:00:33.3]} 30... Kg7 {[%clk
0:01:25.1]} 31. Ne6+ {[%clk 0:00:24.3]} 31... Rxe6 {[%clk 0:01:20.8]} 32. Rxg8+
{[%clk 0:00:15.5]} 32... Kxg8 {[%clk 0:01:18.6]} 33. Bxe6+ {[%clk 0:00:16.4]}
33... Kg7 {[%clk 0:01:17.3]} 34. Rf1 {[%clk 0:00:17.3]} 34... Nc8 {[%clk
0:01:10.8]} 35. a3 {[%clk 0:00:17.4]} 35... Nd6 {[%clk 0:01:10.1]} 36. Nh1
{[%clk 0:00:16.1]} 36... Re7 {[%clk 0:01:09.6]} 37. Bd5 {[%clk 0:00:15.8]} 37...
a6 {[%clk 0:01:05.4]} 38. Nf2 {[%clk 0:00:16.2]} 38... Nf7 {[%clk 0:01:01.1]}
39. Nh3 {[%clk 0:00:15.1]} 39... Nh6 {[%clk 0:00:55.8]} 40. Ng5 {[%clk
0:00:14.3]} 40... Nd8 {[%clk 0:00:53.3]} 41. b4 {[%clk 0:00:13.7]} 41... Ng4
{[%clk 0:00:50.4]} 42. Rc1 {[%clk 0:00:14.3]} 42... Ne3 {[%clk 0:00:47.9]} 43.
Rc8 {[%clk 0:00:13.3]} 43... Nf1+ {[%clk 0:00:43.1]} 44. Ke1 {[%clk 0:00:10.7]}
44... Ne3 {[%clk 0:00:33]} 45. Rxd8 {[%clk 0:00:10.6]} 45... Nxg2+ {[%clk
0:00:31.4]} 46. Kf2 {[%clk 0:00:06.4]} 46... Nf4 {[%clk 0:00:31.3]} 47. Bc4
{[%clk 0:00:05.9]} 47... Kh6 {[%clk 0:00:28.9]} 48. Nf7+ {[%clk 0:00:05.5]}
48... Kg7 {[%clk 0:00:26.5]} 49. Nd6 {[%clk 0:00:06.4]} 49... Nh3+ {[%clk
0:00:22.7]} 50. Kg3 {[%clk 0:00:06.5]} 50... Nf4 {[%clk 0:00:21.6]} 51. b5
{[%clk 0:00:07.4]} 51... Nh5+ {[%clk 0:00:21]} 52. Kg4 {[%clk 0:00:07.3]} 52...
Nf6+ {[%clk 0:00:20.7]} 53. Kf3 {[%clk 0:00:08.2]} 53... Nh5 {[%clk 0:00:20.5]}
54. bxa6 {[%clk 0:00:07.7]} 54... bxa6 {[%clk 0:00:19.7]} 55. Bxa6 {[%clk
0:00:08.6]} 55... Ra7 {[%clk 0:00:18]} 56. Bc4 {[%clk 0:00:04.6]} 56... Rxa3
{[%clk 0:00:17.1]} 57. Nb5 {[%clk 0:00:05.1]} 57... Ra1 {[%clk 0:00:16.6]} 58.
Rd7+ {[%clk 0:00:06]} 58... Kh6 {[%clk 0:00:15.9]} 59. Nd6 {[%clk 0:00:06.6]}
59... Rf1+ {[%clk 0:00:15.7]} 60. Ke2 {[%clk 0:00:07.3]} 60... Rh1 {[%clk
0:00:15]} 61. Nf7+ {[%clk 0:00:07.3]} 61... Kg7 {[%clk 0:00:14.5]} 62. Nxe5+
{[%clk 0:00:08.2]} 62... Kf6 {[%clk 0:00:13.1]} 63. Nf3 {[%clk 0:00:09.1]} 63...
Nf4+ {[%clk 0:00:10.1]} 64. Kf2 {[%clk 0:00:09]} 64... Rc1 {[%clk 0:00:10]} 65.
Rf7# {[%clk 0:00:09]} 1-0